[Event "EYTCC Girls U18 2022"]
[Site "Thessaloniki"]
[Date "2022.07.15"]
[Round "4.9"]
[White "Alexandri, Dimitra"]
[Black "Rozmanec, Pia"]
[Result "1/2-1/2"]
[ECO "A52"]
[WhiteElo "1683"]
[BlackElo "1642"]
[Annotator "NA"]
[PlyCount "150"]
[EventDate "2022.07.12"]
[EventType "team-tourn"]
[EventCountry "GRE"]
[SourceTitle "playchess.com"]
[Source "ChessBase"]
[SourceQuality "1"]
[WhiteTeam "Greece"]
[BlackTeam "Slovenia"]
[WhiteTeamCountry "GRE"]
[BlackTeamCountry "SLO"]
[TimeControl "40/5400+30:1800+30"]

1. d4 {[%emt 0:00:02]} Nf6 {[%emt 0:00:04]} 2. c4 {[%emt 0:00:11]} e5 {[%emt 0:00:05]} 3. dxe5 {[%emt 0:00:11]} Ng4 {[%emt 0:00:06]} 4. Bf4 {[%emt 0:00:21]} Nc6 {[%emt 0:00:13]} 5. Nf3 {[%emt 0:00:10]} Bb4+ {[%emt 0:00:43]} 6. Nc3 {[%emt 0:00:56]} Bxc3+ {[%emt 0:01:13]} 7. bxc3 {[%emt 0:00:10]} Qe7 {[%emt 0:00:07]} 8. Qd5 {[%emt 0:01:55]} f6 {[%emt 0:01:02]} 9. exf6 {[%emt 0:08:46]} Nxf6 {[%emt 0:00:28]} 10. Qd3 {[%emt 0:02:29]} d6 {[%emt 0:01:10]} 11. e3 {[%emt 0:00:35]} O-O {[%emt 0:02:11]} 12. Be2 {[%emt 0:00:49]} Bg4 {[%emt 0:04:39]} 13. O-O {[%emt 0:02:42]} Qe4 {[%emt 0:17:42]} 14. Ng5 {[%emt 0:13:21]} Bxe2 {[%emt 0:05:07]} 15. Qxe2 {[%emt 0:00:14]} Qf5 {[%emt 0:01:09]} 16. Rab1 {[%emt 0:03:01]} Ne4 {[%emt 0:14:27]} 17. Nxe4 {[%emt 0:02:49]} Qxe4 {[%emt 0:00:08]} 18. Bg3 {[%emt 0:01:13]} b6 {[%emt 0:02:32]} 19. Rbd1 {[%emt 0:04:22]} Rf5 {[%emt 0:05:39]} 20. f3 {[%emt 0:05:27]} Qe6 {[%emt 0:03:10]} 21. e4 {[%emt 0:01:57]} Re8 {[%emt 0:07:15]} 22. Rd5 {[%emt 0:01:39]} Ne7 {[%emt 0:01:58]} 23. Qd3 {[%emt 0:05:32]} Rf6 {[%emt 0:04:04]} 24. Rb5 {[%emt 0:03:57]} Ng6 {[%emt 0:03:01]} 25. Rd1 {[%emt 0:07:24]} Nf4 {[%emt 0:01:28]} 26. Bxf4 {[%emt 0:04:34]} Rxf4 {[%emt 0:00:04]} 27. Qd5 {[%emt 0:00:54]} Rf6 {[%emt 0:02:16]} 28. Qxe6+ {[%emt 0:02:07]} Rfxe6 {[%emt 0:00:25]} 29. Rbd5 {[%emt 0:00:19]} Kf7 {[%emt 0:01:16]} 30. a4 {[%emt 0:00:41]} a5 {[%emt 0:01:42]} 31. Kf2 {[%emt 0:01:57]} Ke7 {[%emt 0:04:49]} 32. Rb5 {[%emt 0:03:34]} Rf8 {[%emt 0:01:47]} 33. Re1 {[%emt 0:03:28]} Kd7 {[%emt 0:01:48]} 34. Rg5 {[%emt 0:02:27]} Rf7 {[%emt 0:01:02]} 35. Ke3 {[%emt 0:01:29]} c6 {[%emt 0:02:45]} 36. Rb1 {[%emt 0:03:16]} Kc7 {[%emt 0:00:18]} 37. Kd4 {[%emt 0:01:27]} g6 {[%emt 0:01:38]} 38. h4 {[%emt 0:02:57]} h6 {[%emt 0:06:37]} 39. Rg3 {[%emt 0:00:20]} Rd7 {[%emt 0:01:16]} 40. Rb2 {[%emt 0:00:00]} Rd8 {[%emt 0:00:00]} 41. Rh3 {[%emt 0:04:57]} Rf6 {[%emt 0:09:52]} 42. Rh1 {[%emt 0:01:40]} Rb8 {[%emt 0:09:04]} 43. Rf1 {[%emt 0:03:00]} Rbf8 {[%emt 0:01:49]} 44. Rbf2 {[%emt 0:01:39]} g5 {[%emt 0:01:52]} 45. hxg5 {[%emt 0:02:30]} hxg5 {[%emt 0:00:04]} 46. g3 {[%emt 0:00:36]} c5+ {[%emt 0:02:52]} 47. Kd3 {[%emt 0:01:41]} Rh6 {[%emt 0:01:05]} 48. Ke3 {[%emt 0:05:26]} Rh3 {[%emt 0:01:23]} 49. Rg2 {[%emt 0:00:36]} Kd7 {[%emt 0:02:25]} 50. Rd1 {[%emt 0:06:28]} Rh6 {[%emt 0:04:02]} 51. Rb1 {[%emt 0:01:10]} Kc7 {[%emt 0:00:20]} 52. Rgb2 {[%emt 0:01:03]} Rhf6 {[%emt 0:01:19]} 53. Rf2 {[%emt 0:00:53]} Rh6 {[%emt 0:00:27]} 54. Rd1 {[%emt 0:03:51]} Rh3 {[%emt 0:00:31]} 55. Rg2 {[%emt 0:00:14]} Rh6 {[%emt 0:00:38]} 56. Rd5 {[%emt 0:02:06]} Rg6 {[%emt 0:01:23]} 57. Rh2 {[%emt 0:01:10]} Rgf6 {[%emt 0:01:39]} 58. Rf2 {[%emt 0:00:18]} Rg6 {[%emt 0:00:07]} 59. Rf5 {[%emt 0:03:02]} Rh8 {[%emt 0:00:35]} 60. f4 {[%emt 0:01:07]} gxf4+ {[%emt 0:01:00]} 61. Kxf4 {[%emt 0:00:29]} Rh3 {[%emt 0:00:31]} 62. Rf3 {[%emt 0:00:22]} Rh1 {[%emt 0:00:24]} 63. g4 {[%emt 0:00:18]} Ra1 {[%emt 0:00:11]} 64. g5 {[%emt 0:01:15]} Rxa4 {[%emt 0:00:27]} 65. Rf6 {[%emt 0:00:42]} Rg8 {[%emt 0:00:46]} 66. g6 {[%emt 0:00:38]} Rxc4 {[%emt 0:00:15]} 67. Rf7+ {[%emt 0:00:33]} Kc6 {[%emt 0:00:44]} 68. g7 {[%emt 0:00:13]} d5 {[%emt 0:00:23]} 69. Kg5 {[%emt 0:02:22]} Rxe4 {[%emt 0:00:20]} 70. Kg6 {[%emt 0:00:13]} Ree8 {[%emt 0:00:12]} 71. Rf8 {[%emt 0:00:25]} Rxg7+ {[%emt 0:00:12]} 72. Kxg7 Rxf8 73. Rxf8 {[%emt 0:00:52]} Kb5 {[%emt 0:00:21]} 74. Kf6 {[%emt 0:01:19]} Kc4 {[%emt 0:01:36]} 75. Ke5 {[%emt 0:00:07]} a4 1/2-1/2

[Event "EYTCC Girls U18 2022"]
[Site "Thessaloniki"]
[Date "2022.07.15"]
[Round "4.10"]
[White "Guid, Taja"]
[Black "Alexandri, Vasiliki"]
[Result "1-0"]
[ECO "C28"]
[WhiteElo "1479"]
[BlackElo "1527"]
[Annotator "NA"]
[PlyCount "107"]
[EventDate "2022.07.12"]
[EventType "team-tourn"]
[EventCountry "GRE"]
[SourceTitle "playchess.com"]
[Source "ChessBase"]
[SourceQuality "1"]
[WhiteTeam "Slovenia"]
[BlackTeam "Greece"]
[WhiteTeamCountry "SLO"]
[BlackTeamCountry "GRE"]
[TimeControl "40/5400+30:1800+30"]

1. e4 {[%emt 0:00:02]} e5 {[%emt 0:00:09]} 2. Bc4 {[%emt 0:00:10]} Nc6 {[%emt 0:00:19]} 3. Nc3 {[%emt 0:00:13]} Nf6 {[%emt 0:00:51]} 4. d3 {[%emt 0:00:30]} Bc5 {[%emt 0:01:29]} 5. f4 {[%emt 0:00:20]} d6 {[%emt 0:05:20]} 6. Nf3 {[%emt 0:00:17]} Bg4 {[%emt 0:04:57]} 7. Na4 {[%emt 0:01:42]} Bxf3 {[%emt 0:05:25]} 8. Qxf3 {[%emt 0:19:18]} Nd4 {[%emt 0:00:50]} 9. Qd1 {[%emt 0:00:46]} Bb6 {[%emt 0:09:30]} 10. c3 {[%emt 0:10:15]} Nc6 {[%emt 0:01:06]} 11. Nxb6 {[%emt 0:01:59]} axb6 {[%emt 0:00:06]} 12. O-O {[%emt 0:03:25]} h6 {[%emt 0:03:49]} 13. Be3 {[%emt 0:10:07]} O-O {[%emt 0:01:21]} 14. Qf3 {[%emt 0:02:55]} Qd7 {[%emt 0:08:22]} 15. f5 {[%emt 0:07:58]} Na5 {[%emt 0:02:39]} 16. Bd5 {[%emt 0:06:44]} c6 {[%emt 0:00:26]} 17. Bb3 {[%emt 0:00:23]} Nxb3 {[%emt 0:00:07]} 18. axb3 {[%emt 0:00:05]} b5 {[%emt 0:02:13]} 19. Qg3 {[%emt 0:03:17]} Kh7 {[%emt 0:00:40]} 20. Qh4 {[%emt 0:01:23]} Qe7 {[%emt 0:01:58]} 21. g4 {[%emt 0:04:27]} Nd5 {[%emt 0:07:46]} 22. f6 {[%emt 0:05:18]} Nxf6 {[%emt 0:00:09]} 23. Rxa8 {[%emt 0:01:28]} Rxa8 {[%emt 0:00:09]} 24. Bxh6 {[%emt 0:12:13]} Rh8 {[%emt 0:01:17]} 25. Bxg7+ {[%emt 0:01:59]} Kxg7 {[%emt 0:00:06]} 26. Qg5+ {[%emt 0:00:04]} Kf8 {[%emt 0:00:07]} 27. Qxf6 {[%emt 0:00:28]} Qxf6 {[%emt 0:00:05]} 28. Rxf6 {[%emt 0:00:06]} Ke7 {[%emt 0:00:36]} 29. Rf3 {[%emt 0:00:29]} d5 {[%emt 0:01:32]} 30. exd5 {[%emt 0:00:49]} cxd5 {[%emt 0:00:08]} 31. Kg2 {[%emt 0:00:38]} Ke6 {[%emt 0:01:54]} 32. Kg3 {[%emt 0:00:34]} f6 {[%emt 0:06:49]} 33. h4 {[%emt 0:00:37]} Rg8 {[%emt 0:01:34]} 34. Rf5 {[%emt 0:00:56]} Rh8 {[%emt 0:02:02]} 35. h5 {[%emt 0:00:59]} Rh7 {[%emt 0:01:46]} 36. Kh4 {[%emt 0:00:21]} Rh8 {[%emt 0:00:45]} 37. Rf1 {[%emt 0:00:02]} Rh7 38. Ra1 e4 {[%emt 0:13:38]} 39. d4 {[%emt 0:03:26]} Kd6 {[%emt 0:03:40]} 40. Rf1 {[%emt 0:00:00]} Ke6 {[%emt 0:00:00]} 41. Kg3 {[%emt 0:03:58]} Rh8 {[%emt 0:03:10]} 42. Kf4 {[%emt 0:01:58]} Rg8 {[%emt 0:01:54]} 43. Ra1 {[%emt 0:00:59]} Kd6 {[%emt 0:00:11]} 44. Rh1 {[%emt 0:00:32]} Ke6 {[%emt 0:01:49]} 45. Rg1 {[%emt 0:01:52]} Rf8 {[%emt 0:01:48]} 46. Ra1 {[%emt 0:02:58]} Kd6 {[%emt 0:01:09]} 47. Kf5 {[%emt 0:00:45]} Rg8 {[%emt 0:01:18]} 48. h6 {[%emt 0:17:57]} Rg5+ {[%emt 0:26:53]} 49. Kxf6 {[%emt 0:00:23]} Rxg4 {[%emt 0:00:03]} 50. Rh1 {[%emt 0:00:20]} Rf4+ {[%emt 0:00:18]} 51. Kg5 {[%emt 0:00:16]} Rf8 {[%emt 0:00:40]} 52. h7 {[%emt 0:00:11]} Rh8 {[%emt 0:00:09]} 53. Kf6 {[%emt 0:01:37]} e3 {[%emt 0:01:44]} 54. Kg7 {[%emt 0:00:16]} 1-0

[Event "EYTCC Girls U18 2022"]
[Site "Thessaloniki"]
[Date "2022.07.15"]
[Round "4.11"]
[White "Dereka, Konstantina"]
[Black "Bondar, Daria"]
[Result "0-1"]
[ECO "E71"]
[WhiteElo "1451"]
[BlackElo "1566"]
[Annotator "NA"]
[PlyCount "64"]
[EventDate "2022.07.12"]
[EventType "team-tourn"]
[EventCountry "GRE"]
[SourceTitle "playchess.com"]
[Source "ChessBase"]
[SourceQuality "1"]
[WhiteTeam "Greece"]
[BlackTeam "Ukraine"]
[WhiteTeamCountry "GRE"]
[BlackTeamCountry "UKR"]
[TimeControl "40/5400+30:1800+30"]

1. d4 {[%emt 0:00:03]} Nf6 {[%emt 0:00:06]} 2. c4 {[%emt 0:00:04]} g6 {[%emt 0:00:05]} 3. Nc3 {[%emt 0:00:02]} Bg7 {[%emt 0:00:14]} 4. e4 {[%emt 0:00:04]} d6 {[%emt 0:00:02]} 5. h3 {[%emt 0:00:27]} O-O {[%emt 0:00:13]} 6. Nf3 {[%emt 0:00:03]} Na6 {[%emt 0:00:30]} 7. Be3 {[%emt 0:01:16]} c5 {[%emt 0:00:20]} 8. d5 {[%emt 0:00:13]} e6 {[%emt 0:00:24]} 9. Bd3 {[%emt 0:03:46]} exd5 {[%emt 0:00:28]} 10. exd5 {[%emt 0:00:26]} Nb4 {[%emt 0:00:44]} 11. Bb1 {[%emt 0:00:48]} b5 {[%emt 0:00:51]} 12. a3 {[%emt 0:04:05]} Qa5 {[%emt 0:05:19]} 13. Nd2 {[%emt 0:09:42]} bxc4 {[%emt 0:09:23]} 14. Nxc4 {[%emt 0:01:47]} Qa6 {[%emt 0:00:19]} 15. axb4 {[%emt 0:14:34]} Qxa1 {[%emt 0:07:12]} 16. bxc5 {[%emt 0:00:05]} dxc5 {[%emt 0:15:28]} 17. Bxc5 {[%emt 0:08:55]} Re8+ {[%emt 0:02:58]} 18. Be3 {[%emt 0:04:58]} Ba6 {[%emt 0:13:21]} 19. Bd3 {[%emt 0:05:13]} Qxd1+ {[%emt 0:00:07]} 20. Kxd1 {[%emt 0:00:05]} Rad8 {[%emt 0:08:41]} 21. Bxa7 {[%emt 0:08:45]} Ra8 {[%emt 0:05:52]} 22. Be3 {[%emt 0:04:45]} Bxc4 {[%emt 0:00:14]} 23. Bxc4 {[%emt 0:00:04]} Rxe3 {[%emt 0:00:08]} 24. fxe3 {[%emt 0:00:03]} Ra1+ {[%emt 0:00:05]} 25. Kd2 {[%emt 0:00:12]} Rxh1 {[%emt 0:00:12]} 26. d6 {[%emt 0:00:01]} Ra1 {[%emt 0:01:55]} 27. Bb5 {[%emt 0:00:45]} Ra8 {[%emt 0:00:20]} 28. e4 {[%emt 0:00:26]} Ne8 {[%emt 0:01:17]} 29. d7 {[%emt 0:01:00]} Nc7 {[%emt 0:00:12]} 30. Bc6 {[%emt 0:00:31]} Bxc3+ {[%emt 0:00:04]} 31. bxc3 {[%emt 0:00:42]} Rd8 {[%emt 0:00:05]} 32. c4 {[%emt 0:00:14]} Ne6 {[%emt 0:00:13]} 0-1

[Event "EYTCC Girls U18 2022"]
[Site "Thessaloniki"]
[Date "2022.07.15"]
[Round "4.12"]
[White "Russeva, Viktoria"]
[Black "Kapia, Aggeliki"]
[Result "1-0"]
[ECO "C05"]
[WhiteElo "1866"]
[BlackElo "1230"]
[Annotator "NA"]
[PlyCount "65"]
[EventDate "2022.07.12"]
[EventType "team-tourn"]
[EventCountry "GRE"]
[SourceTitle "playchess.com"]
[Source "ChessBase"]
[SourceQuality "1"]
[WhiteTeam "Ukraine"]
[BlackTeam "Greece"]
[WhiteTeamCountry "UKR"]
[BlackTeamCountry "GRE"]
[TimeControl "40/5400+30:1800+30"]

1. e4 {[%emt 0:00:04]} e6 {[%emt 0:00:00]} 2. d4 {[%emt 0:00:07]} d5 {[%emt 0:00:00]} 3. Nd2 {[%emt 0:00:08]} Nf6 {[%emt 0:00:07]} 4. e5 {[%emt 0:00:09]} Nfd7 {[%emt 0:00:25]} 5. Bd3 {[%emt 0:00:13]} c5 {[%emt 0:00:11]} 6. c3 {[%emt 0:00:06]} Nc6 {[%emt 0:00:09]} 7. Ngf3 {[%emt 0:00:27]} Qb6 {[%emt 0:01:34]} 8. dxc5 {[%emt 0:06:27]} Bxc5 {[%emt 0:03:31]} 9. Qe2 {[%emt 0:01:16]} Qc7 {[%emt 0:08:13]} 10. Nb3 {[%emt 0:02:43]} Be7 {[%emt 0:08:50]} 11. Bf4 {[%emt 0:02:22]} a6 {[%emt 0:01:53]} 12. O-O {[%emt 0:01:44]} b5 {[%emt 0:03:32]} 13. Rfe1 {[%emt 0:05:18]} Bb7 {[%emt 0:04:02]} 14. Nfd4 {[%emt 0:06:29]} Nc5 {[%emt 0:17:53]} 15. Nxc6 {[%emt 0:06:01]} Nxd3 {[%emt 0:05:41]} 16. Qxd3 {[%emt 0:00:09]} Bxc6 {[%emt 0:01:39]} 17. Nd4 {[%emt 0:04:33]} Bc5 {[%emt 0:20:00]} 18. a3 {[%emt 0:03:04]} Qb6 {[%emt 0:01:11]} 19. b4 {[%emt 0:05:50]} Be7 {[%emt 0:00:43]} 20. Qg3 {[%emt 0:03:53]} Bf8 {[%emt 0:06:09]} 21. Re3 {[%emt 0:12:54]} h6 {[%emt 0:01:12]} 22. Qg4 {[%emt 0:03:39]} g5 {[%emt 0:01:52]} 23. Bg3 {[%emt 0:00:29]} Ke7 {[%emt 0:06:30]} 24. h4 {[%emt 0:01:34]} Rg8 {[%emt 0:01:39]} 25. Rf1 {[%emt 0:12:56]} h5 {[%emt 0:04:10]} 26. Qxh5 {[%emt 0:00:27]} g4 {[%emt 0:00:32]} 27. Bf4 {[%emt 0:00:39]} Be8 {[%emt 0:01:02]} 28. Bg5+ {[%emt 0:00:20]} Kd7 {[%emt 0:00:49]} 29. Qxg4 {[%emt 0:00:25]} Bh6 {[%emt 0:00:17]} 30. f4 {[%emt 0:02:25]} Bxg5 31. fxg5 {[%emt 0:00:15]} Rc8 {[%emt 0:00:59]} 32. Kh1 {[%emt 0:01:13]} Qc7 {[%emt 0:00:52]} 33. Rf6 {[%emt 0:01:12]} 1-0

[Event "EYTCC Girls U18 2022"]
[Site "Thessaloniki"]
[Date "2022.07.16"]
[Round "5.1"]
[White "Demeter, Dorina"]
[Black "Lehaci, Miruna-Daria"]
[Result "1-0"]
[ECO "D26"]
[WhiteElo "2176"]
[BlackElo "2193"]
[Annotator "ChessBase"]
[PlyCount "112"]
[EventDate "2022.07.12"]
[EventType "team-tourn"]
[EventCountry "GRE"]
[SourceTitle "playchess.com"]
[Source "ChessBase"]
[SourceQuality "1"]
[WhiteTeam "Hungary"]
[BlackTeam "Romania"]
[WhiteTeamCountry "HUN"]
[BlackTeamCountry "ROU"]
[TimeControl "40/5400+30:1800+30"]

1. Nf3 {[%emt 0:00:11]} d5 {[%emt 0:00:06]} 2. d4 {[%emt 0:00:09]} Nf6 {[%emt 0:00:11]} 3. c4 {[%emt 0:00:26]} dxc4 {[%emt 0:00:12]} 4. e3 {[%emt 0:01:32]} e6 {[%emt 0:00:17]} 5. Bxc4 {[%emt 0:00:46]} c5 {[%emt 0:00:11]} 6. Nc3 {[%emt 0:05:59]} cxd4 {[%emt 0:00:13]} 7. Qxd4 {[%emt 0:09:35]} Qxd4 {[%emt 0:04:04]} 8. Nxd4 {[%emt 0:00:07]} a6 {[%emt 0:00:32]} 9. Ke2 {[%emt 0:05:59]} b5 {[%emt 0:03:09]} 10. Bb3 {[%emt 0:00:11]} Bb7 {[%emt 0:01:16]} 11. Rd1 {[%emt 0:03:17]} Nbd7 {[%emt 0:04:37]} 12. f3 {[%emt 0:03:10]} h5 {[%emt 0:03:58]} 13. h4 {[%emt 0:03:40]} Be7 {[%emt 0:03:32]} 14. e4 {[%emt 0:03:41]} Nh7 {[%emt 0:11:54]} 15. Be3 {[%emt 0:04:00]} Ne5 {[%emt 0:05:08]} 16. Rac1 {[%emt 0:07:16]} Rc8 {[%emt 0:06:11]} 17. a4 {[%emt 0:04:53]} b4 {[%emt 0:06:37]} 18. Nb1 {[%emt 0:00:34]} O-O {[%emt 0:02:21]} 19. Rxc8 {[%emt 0:11:47]} Rxc8 {[%emt 0:01:41]} 20. Nxe6 {[%emt 0:00:56]} a5 {[%emt 0:14:00]} 21. Bd4 {[%emt 0:07:58]} Ba6+ {[%emt 0:03:07]} 22. Ke3 {[%emt 0:02:01]} Nc6 {[%emt 0:10:59]} 23. Bb6 {[%emt 0:02:55]} Rb8 {[%emt 0:02:16]} 24. Bc7 {[%emt 0:03:26]} Rc8 {[%emt 0:05:28]} 25. Bd6 {[%emt 0:01:46]} Bf6 {[%emt 0:07:30]} 26. Nc5 {[%emt 0:01:29]} Bd4+ {[%emt 0:01:44]} 27. Rxd4 {[%emt 0:00:28]} Nxd4 {[%emt 0:00:04]} 28. Kxd4 {[%emt 0:00:09]} Bf1 {[%emt 0:00:06]} 29. g3 {[%emt 0:02:03]} g5 {[%emt 0:00:18]} 30. Nd2 {[%emt 0:00:20]} Bg2 {[%emt 0:00:26]} 31. e5 {[%emt 0:01:31]} Kg7 {[%emt 0:01:09]} 32. Bd5 {[%emt 0:01:20]} gxh4 {[%emt 0:00:38]} 33. gxh4 {[%emt 0:00:10]} Nf8 {[%emt 0:01:14]} 34. Be7 {[%emt 0:03:20]} Ng6 {[%emt 0:00:48]} 35. Bf6+ {[%emt 0:00:16]} Kf8 {[%emt 0:00:21]} 36. Nc4 {[%emt 0:00:23]} Nf4 {[%emt 0:00:32]} 37. Nd6 {[%emt 0:02:47]} Rc7 {[%emt 0:00:07]} 38. Bd8 {[%emt 0:02:30]} Nxd5 {[%emt 0:00:59]} 39. Kxd5 {[%emt 0:00:31]} Bxf3+ {[%emt 0:00:09]} 40. Kd4 {[%emt 0:00:00]} Ra7 {[%emt 0:00:00]} 41. Nc4 {[%emt 0:03:37]} Kg7 {[%emt 0:07:17]} 42. Bxa5 {[%emt 0:01:07]} Kg6 {[%emt 0:02:22]} 43. Bxb4 {[%emt 0:01:03]} Kf5 {[%emt 0:00:40]} 44. Bd2 {[%emt 0:00:34]} Be2 {[%emt 0:03:06]} 45. b4 {[%emt 0:02:32]} Ra8 {[%emt 0:05:27]} 46. b5 {[%emt 0:01:58]} Kg4 {[%emt 0:02:51]} 47. Bg5 {[%emt 0:00:30]} Rb8 {[%emt 0:00:58]} 48. Ne3+ {[%emt 0:02:11]} Kh3 {[%emt 0:00:43]} 49. Nc4 {[%emt 0:00:54]} Kg4 {[%emt 0:00:34]} 50. Be7 {[%emt 0:00:55]} Re8 {[%emt 0:00:26]} 51. Bd6 {[%emt 0:00:37]} Kxh4 {[%emt 0:00:16]} 52. b6 {[%emt 0:00:10]} Bf3 {[%emt 0:00:05]} 53. Ne4 {[%emt 0:01:03]} f5 {[%emt 0:00:30]} 54. Nf6 {[%emt 0:00:12]} Re6 {[%emt 0:01:44]} 55. Nd5 {[%emt 0:00:15]} Rg6 {[%emt 0:00:20]} 56. b7 {[%emt 0:00:42]} Rg4+ {[%emt 0:00:03]} 1-0

[Event "EYTCC Girls U18 2022"]
[Site "Thessaloniki"]
[Date "2022.07.16"]
[Round "5.2"]
[White "Obada, Ema"]
[Black "Juhasz, Judit"]
[Result "1-0"]
[ECO "B32"]
[WhiteElo "2042"]
[BlackElo "2037"]
[Annotator "ChessBase"]
[PlyCount "89"]
[EventDate "2022.07.12"]
[EventType "team-tourn"]
[EventCountry "GRE"]
[SourceTitle "playchess.com"]
[Source "ChessBase"]
[SourceQuality "1"]
[WhiteTeam "Romania"]
[BlackTeam "Hungary"]
[WhiteTeamCountry "ROU"]
[BlackTeamCountry "HUN"]
[TimeControl "40/5400+30:1800+30"]

1. e4 {[%emt 0:00:02]} c5 {[%emt 0:00:08]} 2. Nf3 {[%emt 0:00:05]} Nc6 {[%emt 0:00:05]} 3. d4 cxd4 {[%emt 0:00:05]} 4. Nxd4 {[%emt 0:00:13]} Qb6 {[%emt 0:00:06]} 5. Nb3 {[%emt 0:00:05]} Nf6 {[%emt 0:00:05]} 6. Nc3 {[%emt 0:00:06]} e6 {[%emt 0:00:05]} 7. a3 {[%emt 0:00:35]} a6 {[%emt 0:00:09]} 8. Bf4 {[%emt 0:00:15]} Ne7 {[%emt 0:00:36]} 9. g3 {[%emt 0:00:52]} Ng6 {[%emt 0:00:59]} 10. Bd2 {[%emt 0:00:29]} Be7 {[%emt 0:00:54]} 11. f4 {[%emt 0:00:54]} d5 {[%emt 0:02:56]} 12. e5 {[%emt 0:03:26]} Nd7 {[%emt 0:00:19]} 13. Bd3 {[%emt 0:07:36]} Nc5 {[%emt 0:11:33]} 14. Nxc5 {[%emt 0:02:57]} Bxc5 {[%emt 0:00:40]} 15. Na4 {[%emt 0:09:19]} Bf2+ {[%emt 0:05:11]} 16. Kf1 {[%emt 0:00:10]} Qc6 {[%emt 0:03:54]} 17. Kxf2 {[%emt 0:02:44]} Qxa4 {[%emt 0:00:07]} 18. b3 {[%emt 0:00:41]} Qc6 {[%emt 0:00:35]} 19. h4 {[%emt 0:01:04]} b6 {[%emt 0:04:34]} 20. h5 {[%emt 0:09:12]} Ne7 {[%emt 0:00:45]} 21. Qg4 {[%emt 0:01:51]} Bb7 {[%emt 0:04:38]} 22. Rhe1 {[%emt 0:38:52]} g6 {[%emt 0:23:44]} 23. Bb4 {[%emt 0:07:24]} a5 {[%emt 0:09:13]} 24. a4 {[%emt 0:01:38]} Ba6 {[%emt 0:02:29]} 25. Bxa6 {[%emt 0:01:35]} Rxa6 {[%emt 0:00:07]} 26. Bxe7 {[%emt 0:01:41]} Kxe7 {[%emt 0:00:25]} 27. Re2 {[%emt 0:01:32]} Rg8 {[%emt 0:07:49]} 28. Qg5+ {[%emt 0:02:38]} Ke8 {[%emt 0:02:34]} 29. Rd1 {[%emt 0:01:31]} Qc5+ {[%emt 0:00:34]} 30. Kg2 {[%emt 0:00:40]} Qe7 {[%emt 0:02:07]} 31. Qh6 {[%emt 0:01:47]} gxh5 {[%emt 0:09:11]} 32. Qxh7 {[%emt 0:00:38]} Kf8 {[%emt 0:01:49]} 33. Qh6+ {[%emt 0:00:26]} Ke8 {[%emt 0:00:45]} 34. Qxh5 {[%emt 0:00:24]} Qb4 {[%emt 0:02:02]} 35. Qf3 {[%emt 0:01:30]} b5 {[%emt 0:03:10]} 36. axb5 {[%emt 0:02:10]} Qxb5 {[%emt 0:02:38]} 37. c4 {[%emt 0:00:59]} Qb7 {[%emt 0:01:05]} 38. cxd5 {[%emt 0:00:15]} Rb6 {[%emt 0:00:16]} 39. Rd3 {[%emt 0:00:42]} exd5 {[%emt 0:00:37]} 40. Rc2 {[%emt 0:00:00]} Rb5 {[%emt 0:00:00]} 41. f5 {[%emt 0:10:19]} Rg5 {[%emt 0:14:01]} 42. Rdc3 {[%emt 0:04:54]} Kd8 {[%emt 0:02:08]} 43. Rc6 {[%emt 0:03:19]} Qb8 {[%emt 0:04:53]} 44. Qc3 {[%emt 0:01:37]} Rxb3 {[%emt 0:04:40]} 45. Rc8+ {[%emt 0:00:12]} 1-0

[Event "EYTCC Girls U18 2022"]
[Site "Thessaloniki"]
[Date "2022.07.16"]
[Round "5.3"]
[White "Kara, Gulce Nehir"]
[Black "Ruzic, Pia Marie"]
[Result "1-0"]
[ECO "C09"]
[WhiteElo "1907"]
[BlackElo "2025"]
[Annotator "ChessBase"]
[PlyCount "114"]
[EventDate "2022.07.12"]
[EventType "team-tourn"]
[EventCountry "GRE"]
[SourceTitle "playchess.com"]
[Source "ChessBase"]
[SourceQuality "1"]
[WhiteTeam "Turkey"]
[BlackTeam "Slovenia"]
[WhiteTeamCountry "TUR"]
[BlackTeamCountry "SLO"]
[TimeControl "40/5400+30:1800+30"]

1. e4 {[%emt 0:00:04]} e6 {[%emt 0:00:05]} 2. d4 {[%emt 0:00:05]} d5 {[%emt 0:00:07]} 3. Nd2 {[%emt 0:00:08]} c5 {[%emt 0:00:25]} 4. Ngf3 {[%emt 0:00:09]} Nc6 {[%emt 0:00:37]} 5. exd5 {[%emt 0:00:13]} exd5 {[%emt 0:00:05]} 6. Bb5 {[%emt 0:00:11]} cxd4 {[%emt 0:00:09]} 7. Nxd4 {[%emt 0:02:38]} Bd7 {[%emt 0:00:10]} 8. N2f3 {[%emt 0:04:29]} Bd6 {[%emt 0:02:58]} 9. O-O {[%emt 0:03:31]} Nge7 {[%emt 0:00:38]} 10. Re1 {[%emt 0:06:28]} O-O {[%emt 0:08:10]} 11. Bd3 {[%emt 0:06:21]} f6 {[%emt 0:08:19]} 12. c3 {[%emt 0:06:00]} Ne5 {[%emt 0:01:31]} 13. Bc2 {[%emt 0:01:15]} Bg4 {[%emt 0:15:54]} 14. h3 {[%emt 0:09:57]} Bh5 {[%emt 0:01:33]} 15. g4 {[%emt 0:10:33]} Bf7 {[%emt 0:07:03]} 16. Nh4 {[%emt 0:04:43]} N7c6 {[%emt 0:08:59]} 17. f4 {[%emt 0:08:44]} Nxd4 {[%emt 0:02:45]} 18. Qxd4 {[%emt 0:10:08]} Qc7 {[%emt 0:04:00]} 19. Qf2 {[%emt 0:01:09]} Nc4 {[%emt 0:05:10]} 20. Kh1 {[%emt 0:01:21]} Bc5 {[%emt 0:03:36]} 21. Qg3 {[%emt 0:01:27]} Rae8 {[%emt 0:00:45]} 22. Nf5 {[%emt 0:01:30]} Rxe1+ {[%emt 0:10:22]} 23. Qxe1 {[%emt 0:00:06]} Re8 {[%emt 0:00:13]} 24. Qg3 {[%emt 0:12:08]} d4 {[%emt 0:02:12]} 25. cxd4 {[%emt 0:05:42]} Bd5+ {[%emt 0:00:05]} 26. Kg1 {[%emt 0:00:35]} Re2 {[%emt 0:06:01]} 27. Bd3 {[%emt 0:00:13]} Bxd4+ {[%emt 0:02:00]} 28. Nxd4 {[%emt 0:00:12]} Rg2+ {[%emt 0:00:07]} 29. Qxg2 {[%emt 0:00:03]} Bxg2 {[%emt 0:00:04]} 30. Kxg2 {[%emt 0:00:35]} Qc5 {[%emt 0:02:39]} 31. Bxc4+ {[%emt 0:01:47]} Qxc4 {[%emt 0:00:20]} 32. Be3 {[%emt 0:00:47]} h5 {[%emt 0:02:03]} 33. a3 {[%emt 0:01:52]} Qd5+ {[%emt 0:02:12]} 34. Kf2 {[%emt 0:00:55]} Qd7 {[%emt 0:02:00]} 35. Rg1 {[%emt 0:00:41]} Kf7 {[%emt 0:01:07]} 36. Rg3 {[%emt 0:01:03]} hxg4 {[%emt 0:01:27]} 37. hxg4 {[%emt 0:00:10]} Qd5 {[%emt 0:00:17]} 38. g5 {[%emt 0:00:46]} fxg5 {[%emt 0:01:10]} 39. Rxg5 {[%emt 0:00:17]} Qh1 {[%emt 0:00:33]} 40. Nf5 {[%emt 0:00:00]} g6 {[%emt 0:00:00]} 41. Nd6+ {[%emt 0:01:43]} Ke6 {[%emt 0:09:29]} 42. Rxg6+ {[%emt 0:01:38]} Kd5 {[%emt 0:00:04]} 43. Nf5 {[%emt 0:02:47]} Qh2+ {[%emt 0:01:54]} 44. Rg2 {[%emt 0:00:38]} Qh7 {[%emt 0:01:37]} 45. Ng3 {[%emt 0:00:54]} a5 {[%emt 0:01:48]} 46. Kf3 {[%emt 0:00:29]} b5 {[%emt 0:03:07]} 47. Rd2+ {[%emt 0:00:13]} Kc4 {[%emt 0:00:21]} 48. f5 {[%emt 0:00:51]} Qf7 {[%emt 0:01:22]} 49. Rd6 {[%emt 0:05:53]} Qe7 {[%emt 0:02:33]} 50. Ne4 {[%emt 0:00:34]} Kb3 {[%emt 0:03:48]} 51. Bd4 {[%emt 0:00:26]} Qh4 {[%emt 0:01:07]} 52. Ng3 {[%emt 0:02:14]} Qe7 {[%emt 0:00:44]} 53. Re6 {[%emt 0:01:20]} Qd7 {[%emt 0:00:50]} 54. Re4 {[%emt 0:01:25]} Qc6 {[%emt 0:06:13]} 55. f6 {[%emt 0:00:32]} Qd5 {[%emt 0:00:30]} 56. Kf2 {[%emt 0:01:39]} Kc2 {[%emt 0:00:42]} 57. Rf4 {[%emt 0:00:19]} Qd8 1-0